Workbook

Sheet Corporate Model
A2: Period | E2: 2016 | F2: =E2+1 -> 2017 | G2: =F2+1 -> 2018 | H2: 2019 | I2: 2020 | J2: 2021 | K2: 2022 | L2: 2023
A3: Historic Switch | E3: TRUE | F3: FALSE | G3: FALSE | H3: FALSE | I3: FALSE | J3: FALSE | K3: FALSE | L3: FALSE
A5: Historic Balance
B6: Assets
C7: Cash Balance | E7: 150
C8: Gross Assets | E8: 1000
C9: Acccumulated Depreciation | E9: 450
C10: Net Plant | E10: =E8-E9 -> 550
D11: Total Assets | E11: =E10+E7 -> 700
C13: Debt | E13: 400
C14: Equity | E14: =E11-E13 -> 300
D15: Total | E15: =SUM(E13:E14) -> 700
A17: Operating Analysis and Assumptions
B18: EBITDA | E18: 150 | F18: 100 | G18: 280 | H18: =G18*1.03 -> 288.4 | I18: 297.052 | J18: 305.96356 | K18: 315.1424668 | L18: 324.5967408
B19: Cap Exp | E19: 80 | F19: 400 | G19: 200 | H19: 80 | I19: 80 | J19: 80 | K19: 80 | L19: 80
A21: Depreciation
B22: Historic Growth | E22: 0.09205804514
B23: Life | E23: 7
B25: Gross Plant - Existing Plant
C26: Opening Balance | F26: =E28 -> 1000 | G26: =F28 -> 891.9934028 | H26: 774.0439294 | I26: 645.2362581 | J26: 504.5708043 | K26: 350.9559639 | L26: 183.1996415
C27: Less Retirement | E27: 98.90188317 | F27: =E27*(1+$E$22) -> 108.0065972 | G27: =F27*(1+$E$22) -> 117.9494734 | H27: 128.8076713 | I27: 140.6654538 | J27: 153.6148405 | K27: 167.7563224 | L27: 183.1996415
C28: Closing Balance | E28: =IF(E3,E8,E26-E27) -> 1000 | F28: =IF(F3,F8,F26-F27) -> 891.9934028 | G28: 774.0439294 | H28: 645.2362581 | I28: 504.5708043 | J28: 350.9559639 | K28: 183.1996415 | L28: 4.297768896e-08
C30: Depreciation | E30: =1/E23 -> 0.1428571429 | F30: =AVERAGE(F28,F26)*$E$30 -> 135.1423859 | G30: =AVERAGE(G28,G26)*$E$30 -> 119.0026666 | H30: 101.3771563 | I30: 82.12907589 | J30: 61.10905487 | K30: 38.15397181 | L30: 13.08568868
B32: Accumulated Depreciation
C33: Opening Balance | F33: =E36 -> 450 | G33: =F36 -> 477.1357887 | H33: 478.1889819 | I33: 450.7584668 | J33: 392.222089 | K33: 299.7163034 | L33: 170.1139528
C34: Add: Depreciation | F34: =F30 -> 135.1423859 | G34: =G30 -> 119.0026666 | H34: 101.3771563 | I34: 82.12907589 | J34: 61.10905487 | K34: 38.15397181 | L34: 13.08568868
C35: Less: Retirements | F35: =F27 -> 108.0065972 | G35: =G27 -> 117.9494734 | H35: 128.8076713 | I35: 140.6654538 | J35: 153.6148405 | K35: 167.7563224 | L35: 183.1996415
C36: Closing Balance | E36: =IF(E3,E9,E33+E34-E35) -> 450 | F36: =IF(F3,F9,F33+F34-F35) -> 477.1357887 | G36: 478.1889819 | H36: 450.7584668 | I36: 392.222089 | J36: 299.7163034 | K36: 170.1139528 | L36: 4.915665386e-08
C38: Net Plant | E38: =E28-E36 -> 550 | F38: =F28-F36 -> 414.8576141 | G38: =G28-G36 -> 295.8549475 | H38: 194.4777912 | I38: 112.3487154 | J38: 51.23966049 | K38: 13.08568868 | L38: -6.178964895e-09
B40: New Gross Plant
C41: Opening Balance | F41: =E43 -> 0 | G41: =F43 -> 400 | H41: 600 | I41: 680 | J41: 760 | K41: 840 | L41: 920
C42: Add: Cap Exp | F42: =F19 -> 400 | G42: =G19 -> 200 | H42: 80 | I42: 80 | J42: 80 | K42: 80 | L42: 80
C43: Closing Balance | F43: =SUM(F41:F42) -> 400 | G43: =SUM(G41:G42) -> 600 | H43: 680 | I43: 760 | J43: 840 | K43: 920 | L43: 1000
C45: Depreciation Expense | E45: =E30 -> 0.1428571429 | F45: =AVERAGE(F43,F41)*$E$45 -> 28.57142857 | G45: =AVERAGE(G43,G41)*$E$45 -> 71.42857143 | H45: 91.42857143 | I45: 102.8571429 | J45: 114.2857143 | K45: 125.7142857 | L45: 137.1428571
C47: Accumulated Depreciation | F47: =E47+F45 -> 28.57142857 | G47: =F47+G45 -> 100 | H47: 191.4285714 | I47: 294.2857143 | J47: 408.5714286 | K47: 534.2857143 | L47: 671.4285714
C49: Total Net Plant | E49: =E38+E43-E47 -> 550 | F49: =F38+F43-F47 -> 786.2861855 | G49: 795.8549475 | H49: 683.0492198 | I49: 578.0630011 | J49: 482.6682319 | K49: 398.7999744 | L49: 328.5714286
A52: Financing
B53: Cash Balance
C54: Opening Balance | F54: =E56 -> 150 | G54: =F56 -> -150 | H54: -70 | I54: 138.4 | J54: 355.452 | K54: 581.41556 | L54: 816.5580268
C55: Add: New Surplus Cash | F55: =F85 -> -300 | G55: =G85 -> 80 | H55: 208.4 | I55: 217.052 | J55: 225.96356 | K55: 235.1424668 | L55: 244.5967408
C56: Closing Balance | E56: =IF(E3,E7,E54+E55) -> 150 | F56: =F54+F55 -> -150 | G56: =G54+G55 -> -70 | H56: 138.4 | I56: 355.452 | J56: 581.41556 | K56: 816.5580268 | L56: 1061.154768
C57: Interest Income | E57: 0.02
B59: Debt Balance
C60: Opening Balance | F60: =E62 -> 400 | G60: =F62 -> 400 | H60: 400 | I60: 400 | J60: 400 | K60: 400 | L60: 400
C62: Closing Debt Balance | E62: =IF(E3,E13,E60+E61-#REF!) -> 400 | F62: =IF(F3,F13,E62) -> 400 | G62: =IF(G3,G13,F62) -> 400 | H62: =IF(H3,H13,G62) -> 400 | I62: =IF(I3,I13,H62) -> 400 | J62: =IF(J3,J13,I62) -> 400 | K62: =IF(K3,K13,J62) -> 400 | L62: =IF(L3,L13,K62) -> 400
C63: Interest Expense | E63: 0.05
A65: Profit and Loss
C66: EBITDA | F66: =F18 -> 100 | G66: =G18 -> 280 | H66: =H18 -> 288.4 | I66: =I18 -> 297.052 | J66: =J18 -> 305.96356 | K66: =K18 -> 315.1424668 | L66: =L18 -> 324.5967408
C67: Less: Depreciation | F67: =F45+F30 -> 163.7138145 | G67: =G45+G30 -> 190.431238 | H67: =H45+H30 -> 192.8057277 | I67: =I45+I30 -> 184.9862187 | J67: =J45+J30 -> 175.3947692 | K67: =K45+K30 -> 163.8682575 | L67: =L45+L30 -> 150.2285458
C68: EBIT | F68: =F66-F67 -> -63.71381449 | G68: =G66-G67 -> 89.56876198 | H68: 95.59427232 | I68: 112.0657813 | J68: 130.5687908 | K68: 151.2742093 | L68: 174.368195
C69: Less: Interest Expense | F69: =F63 -> 0 | G69: =G63 -> 0 | H69: 0 | I69: 0 | J69: 0 | K69: 0 | L69: 0
C70: Add: Interest Income | F70: =F57 -> 0 | G70: =G57 -> 0 | H70: =H57 -> 0 | I70: =I57 -> 0 | J70: =J57 -> 0 | K70: =K57 -> 0 | L70: =L57 -> 0
C71: EBT | F71: =F68-F69+F70 -> -63.71381449 | G71: =G68-G69+G70 -> 89.56876198 | H71: 95.59427232 | I71: 112.0657813 | J71: 130.5687908 | K71: 151.2742093 | L71: 174.368195
C72: Less: Taxes Paid | E72: 0.3
C73: Earnings | F73: =F71-F72 -> -63.71381449 | G73: =G71-G72 -> 89.56876198 | H73: =H71-H72 -> 95.59427232 | I73: =I71-I72 -> 112.0657813 | J73: =J71-J72 -> 130.5687908 | K73: =K71-K72 -> 151.2742093 | L73: =L71-L72 -> 174.368195
A75: Cash Flow Statement
C76: EBITDA | F76: =F66 -> 100 | G76: =G66 -> 280 | H76: =H66 -> 288.4 | I76: =I66 -> 297.052 | J76: =J66 -> 305.96356 | K76: =K66 -> 315.1424668 | L76: =L66 -> 324.5967408
C77: Less: Taxes Paid | F77: =F72 -> 0 | G77: =G72 -> 0 | H77: 0 | I77: 0 | J77: 0 | K77: 0 | L77: 0
C78: Less: WC Changes
D79: Net Operating Cash Flow | F79: =F76-F77-F78 -> 100 | G79: =G76-G77-G78 -> 280 | H79: 288.4 | I79: 297.052 | J79: 305.96356 | K79: 315.1424668 | L79: 324.5967408
C80: Less: Capital Expenditures | F80: =F19 -> 400 | G80: =G19 -> 200 | H80: =H19 -> 80 | I80: =I19 -> 80 | J80: =J19 -> 80 | K80: =K19 -> 80 | L80: =L19 -> 80
D81: Cash Before Financing | F81: =F79-F80 -> -300 | G81: =G79-G80 -> 80 | H81: 208.4 | I81: 217.052 | J81: 225.96356 | K81: 235.1424668 | L81: 244.5967408
C82: Less: Interest Expense | F82: =F69 -> 0 | G82: =G69 -> 0 | H82: =H69 -> 0 | I82: =I69 -> 0 | J82: =J69 -> 0 | K82: =K69 -> 0 | L82: =L69 -> 0
C83: Add: Income | F83: =F70 -> 0 | G83: =G70 -> 0 | H83: =H70 -> 0 | I83: =I70 -> 0 | J83: =J70 -> 0 | K83: =K70 -> 0 | L83: =L70 -> 0
C84: Less: Dividends | E84: 0.6
D85: Surplus Cash | F85: =F81-F82+F83 -> -300 | G85: =G81-G82+G83 -> 80 | H85: 208.4 | I85: 217.052 | J85: 225.96356 | K85: 235.1424668 | L85: 244.5967408
A87: Balance Sheet
B88: Equity Balance
C89: Opening Balance | F89: =E92 -> 300 | G89: =F92 -> 236.2861855 | H89: 325.8549475 | I89: 421.4492198 | J89: 533.5150011 | K89: 664.0837919 | L89: 815.3580012
C90: Add: Net Income | F90: =F73 -> -63.71381449 | G90: =G73 -> 89.56876198 | H90: =H73 -> 95.59427232 | I90: =I73 -> 112.0657813 | J90: =J73 -> 130.5687908 | K90: =K73 -> 151.2742093 | L90: =L73 -> 174.368195
C91: Less: Dividends | F91: =F84 -> 0 | G91: =G84 -> 0 | H91: =H84 -> 0 | I91: =I84 -> 0 | J91: =J84 -> 0 | K91: =K84 -> 0 | L91: =L84 -> 0
C92: Closing Balance | E92: =IF(E3,E14,E89+E90-E91+#REF!) -> 300 | F92: =IF(F3,F14,F89+F90-F91) -> 236.2861855 | G92: =IF(G3,G14,G89+G90-G91) -> 325.8549475 | H92: =IF(H3,H14,H89+H90-H91) -> 421.4492198 | I92: =IF(I3,I14,I89+I90-I91) -> 533.5150011 | J92: =IF(J3,J14,J89+J90-J91) -> 664.0837919 | K92: =IF(K3,K14,K89+K90-K91) -> 815.3580012 | L92: =IF(L3,L14,L89+L90-L91) -> 989.7261962
B94: Assets
C95: Cash Balance | E95: =E56 -> 150 | F95: =F56 -> -150 | G95: =G56 -> -70 | H95: =H56 -> 138.4 | I95: =I56 -> 355.452 | J95: =J56 -> 581.41556 | K95: =K56 -> 816.5580268 | L95: =L56 -> 1061.154768
C96: Net Plant | E96: =E49 -> 550 | F96: =F49 -> 786.2861855 | G96: =G49 -> 795.8549475 | H96: =H49 -> 683.0492198 | I96: =I49 -> 578.0630011 | J96: =J49 -> 482.6682319 | K96: =K49 -> 398.7999744 | L96: =L49 -> 328.5714286
D97: Total | E97: =SUM(E95:E96) -> 700 | F97: =SUM(F95:F96) -> 636.2861855 | G97: 725.8549475 | H97: 821.4492198 | I97: 933.5150011 | J97: 1064.083792 | K97: 1215.358001 | L97: 1389.726196
C99: Debt | E99: =E62 -> 400 | F99: =F62 -> 400 | G99: =G62 -> 400 | H99: =H62 -> 400 | I99: =I62 -> 400 | J99: =J62 -> 400 | K99: =K62 -> 400 | L99: =L62 -> 400
C100: Equity | E100: =E92 -> 300 | F100: =F92 -> 236.2861855 | G100: 325.8549475 | H100: 421.4492198 | I100: 533.5150011 | J100: 664.0837919 | K100: 815.3580012 | L100: 989.7261962
D101: Total | E101: =SUM(E99:E100) -> 700 | F101: =SUM(F99:F100) -> 636.2861855 | G101: 725.8549475 | H101: 821.4492198 | I101: 933.5150011 | J101: 1064.083792 | K101: 1215.358001 | L101: 1389.726196
C103: Difference | E103: =E101-E97 -> 0 | F103: =F101-F97 -> 0 | G103: 0 | H103: 0 | I103: 0 | J103: 0 | K103: 0 | L103: 0
C104: Test | E104: =ROUND(E103,3)=0 -> TRUE | F104: =ROUND(F103,3)=0 -> TRUE | G104: TRUE | H104: TRUE | I104: TRUE | J104: TRUE | K104: TRUE | L104: TRUE

Sheet Sheet2
